Cogmind - Beta 10 X2 @@@ ROGUE MODE // 2020.07.30 @ 07:10:09 Player: Stryker Result: Destroyed by D-53 Grenadier with Mini Grenade Launcher Performance ------------- Evolutions (0) 0 Regions Visited (2) 400 Robots Destroyed (25) 125 Value Destroyed (416) 416 Prototype IDs (3) 60 Alien Tech Used (0) 0 Bonus (-74) -74 TOTAL SCORE: 927 Bonus ------- Follower Combat Kills 46 Friendly Fire -120 Cogmind --------- Core Integrity 0/250 Matter 209/300 Energy 100/100 System Corruption 0% Temperature Cool (96) Movement Core (1150) Ox22 Location -10/Mines Parts ------- > --- POWER (1) -------- (None) > --- PROPULSION (2) --- (None) > --- UTILITY (2) ------ High-capacity Storage Unit High-capacity Storage Unit > --- WEAPON (2) ------- Improved Light Cannon > --- INVENTORY (20) --- Light Treads Wheel Wheel Compact Wheel High-capacity Storage Unit High-capacity Matter Pod (200) Improved Terrain Scanner Light Armor Plating EM Pulse Gun Medium Laser Medium Laser Light Assault Rifle Improved Light Cannon Improved Light Cannon Mace Peak State ------------ > --- POWER ------------ Ion Engine > --- PROPULSION ------- Light Treads Compact Wheel > --- UTILITY ---------- High-capacity Storage Unit High-capacity Storage Unit > --- WEAPON ----------- Particle Gun Mace > --- INVENTORY -------- Ion Engine Ion Engine Light Treads Light Treads Light Treads Light Treads Wheel Wheel High-capacity Storage Unit High-capacity Matter Pod Improved Terrain Scanner Light Armor Plating EM Pulse Gun Medium Laser Medium Laser Assault Rifle Improved Light Cannon Improved Light Cannon Improved Light Cannon Improved Light Cannon [Rating: 11] Favorites ----------- Power Ion Engine Engine Ion Engine Propulsion Light Treads Treads Light Treads Leg Aluminum Leg Wheel Compact Wheel Utility High-capacity Storage Unit Device Improved Terrain Scanner Storage High-capacity Storage Unit Weapon Particle Gun Energy Gun Particle Gun Ballistic Gun Assault Rifle Ballistic Cannon Improved Light Cannon Impact Weapon Mace Build | -11 -10 -10 ------- Run | Scr Mat Min Slots Evolved . | . . . Power . | . . . Propulsion . | . . . Utility . | . . . Weapon . | . . . Parts Attached 23 | 3 10 10 Power 3 | . 1 2 Engine 3 | . 1 2 Core . | . . . Reactor . | . . . Propulsion 8 | 2 3 3 Treads 6 | 1 2 3 Leg . | . . . Wheel 2 | 1 1 . Hover . | . . . Flight . | . . . Utility 3 | 1 2 . Device 1 | 1 . . Storage 2 | . 2 . Processor . | . . . Hackware . | . . . Protection . | . . . Artifact . | . . . Weapon 9 | . 4 5 Energy Gun 2 | . 2 . Energy Cannon . | . . . Ballistic Gun 4 | . 1 3 Ballistic Cannon 2 | . . 2 Launcher . | . . . Special Weapon . | . . . Impact Weapon 1 | . 1 . Slashing Weapon . | . . . Piercing Weapon . | . . . Special Melee Weapon . | . . . Unidentified Prototypes . | . . . Parts Lost 11 | . 1 10 Power 3 | . . 3 Propulsion 4 | . . 4 Utility . | . . . Weapon 4 | . 1 3 Highest Loss Streak 8 | . 1 8 Average Slot Usage (%) 99 | . 99 99 Engine 14 | . 14 14 Treads 18 | . 14 25 Wheel 9 | . 13 2 Device 2 | . 3 . Storage 25 | . 24 28 Energy Gun 10 | . 14 4 Ballistic Gun 11 | . 11 10 Ballistic Cannon 3 | . . 9 Impact Weapon 2 | . 1 2 Naked Turns . | . . . Heaviest Build 74 | 11 74 74 Greatest Support 40 | 20 40 40 Greatest Overweight (x) 4 | . 4 4 Average Overweight (x) 2 | . 2 1 Largest Inventory Capacity 20 | 6 20 20 Average Capacity 17 | 6 16 20 Most Carried 20 | 6 20 20 Average Carried 15 | 5 13 19 Final Capacity 20 | 6 20 20 Final Carried 20 | 6 20 15 Class Distribution -------------------- 81% | Hauler-Mutant 18% | Mutant Dominant Class ---------------- Hauler-Mutant | -10/Materials Hauler-Mutant | -10/Mines Resources | -11 -10 -10 ----------- Run | Scr Mat Min Matter Collected 738 | 230 409 99 Remotely . | . . . Salvage Created 659 | 84 409 166 Parts 51 | 5 34 12 Haulers Intercepted 2 | . 2 . Recyclers Shooed . | . . . Parts Field Recycled . | . . . Retrieved Matter . | . . . Parts Self-Destructed . | . . . Prevented . | . . . Kills | -11 -10 -10 ------- Run | Scr Mat Min Combat Hostiles Destroyed 18 | . 9 9 Guns 14 | . 9 5 Cannons 4 | . . 4 Classes Destroyed 9 | 2 5 2 Worker 1 | . 1 . Builder 1 | . 1 . Tunneler 1 | 1 . . Hauler 2 | . 2 . Recycler 1 | 1 . . Swarmer 10 | . 4 6 Grunt 7 | . 5 2 Demolisher 1 | . . 1 Assembled 1 | . . 1 Best Kill Streak 4 | 2 4 3 Combat Bots Only 3 | . 3 3 Max Kills in Single Turn 2 | 1 2 1 Gunslinging . | . . . Exploded . | . . . Melee . | . . . Uniques/NPCs Destroyed . | . . . Combat | -11 -10 -10 -------- Run | Scr Mat Min Damage Taken 1597 | . 349 1248 Core 256 | . 43 213 Absorbed by Shields . | . . . Core Remaining (%) 100 | 100 . . Volleys Fired 67 | 3 38 26 Largest 2 | 2 2 2 Hottest 85 | 80 85 85 Shots Fired 134 | 6 76 52 Gun 107 | 6 76 25 Cannon 27 | . . 27 Launcher . | . . . Special . | . . . Kinetic 84 | . 38 46 Thermal 40 | 3 31 6 Explosive . | . . . Electromagnetic 10 | 3 7 . Robot Hit Streak 10 | 5 10 8 Robot Miss Streak 3 | . 3 3 Penetration Max . | . . . Secondary Targets 2 | . 2 . Max Gunslinging Chain 1 | . 1 . Shots Hit Robots 89 | 5 50 34 Core Hits 38 | 3 20 15 Critical Hits 2 | . . 2 Critical Kills . | . . . Critical Parts Destroyed 2 | . . 2 Melee Attacks 8 | . 7 1 Impact 8 | . 7 1 Slashing . | . . . Piercing . | . . . Sneak Attacks . | . . . Combat Hostiles . | . . . Follow-up Attacks . | . . . Damage Inflicted 1301 | 64 702 535 Guns 933 | 64 702 167 Cannons 331 | . . 331 Explosions . | . . . Melee 31 | . . 31 Ramming 6 | . . 6 Kinetic 686 | . 265 421 Thermal 443 | 23 343 77 Explosive . | . . . Electromagnetic 135 | 41 94 . Impact 31 | . . 31 Slashing . | . . . Piercing . | . . . Highest Corruption . | . . . Average Corruption . | . . . Corruption Purged . | . . . Overload Shots . | . . . Overflow Damage 11 | . . 11 Projectiles . | . . . Explosions . | . . . Melee 11 | . . 11 Knockbacks 7 | . . 7 Impact . | . . . Kinetic 6 | . . 6 Secondary 1 | . . 1 Self-Inflicted Damage . | . . . Shots . | . . . Rammed 2 | . . 2 Targets Rammed 2 | . . 2 Kicked . | . . . Crushed . | . . . Highest Temperature 144 | 36 144 96 Average Temperature 41 | 18 44 37 Received Heat Transfer 168 | . 132 36 Siege Activations . | . . . Robots Corrupted . | . . . Combat Hostiles . | . . . Parts Fried . | . . . Impact Corruptions 1 | . . 1 Robots Melted . | . . . Combat Hostiles . | . . . Parts Melted 1 | . 1 . Heat Transferred 1062 | 50 827 185 Parts Sabotaged . | . . . Parts Stolen . | . . . Parts Stripped . | . . . Power Chain Reactions . | . . . Missiles Intercepted . | . . . Alert | -11 -10 -10 ------- Run | Scr Mat Min Peak Influence 253 | 10 165 253 Average Influence 81 | 6 83 84 Maximum Alert Level 1 | . . 1 Low Security (%) 95 | 100 100 88 Level 1 4 | . . 11 Level 2 . | . . . Level 3 . | . . . Level 4 . | . . . Level 5 . | . . . High Security . | . . . Max Security . | . . . Squads Dispatched 2 | . 1 1 Investigation 1 | . . 1 Extermination . | . . . Reinforcement 1 | . 1 . Assault . | . . . Garrison . | . . . Intercept . | . . . Construction Impeded . | . . . Haulers Reinforced . | . . . Stealth | -11 -10 -10 --------- Run | Scr Mat Min Distress Signals 4 | . 4 . Communications Jammed . | . . . Distress Signals . | . . . Times Spotted 43 | . 20 23 Peak Tracking Total 7 | . 4 7 Tactical Retreats 1 | . . 1 Traps | -11 -10 -10 ------- Run | Scr Mat Min Traps Triggered . | . . . Indirectly . | . . . Trap Hack Attempts . | . . . Triggered . | . . . Disarmed . | . . . Reprogrammed . | . . . Reused . | . . . Traps Extracted . | . . . Installed . | . . . Triggered . | . . . Machines | -11 -10 -10 ---------- Run | Scr Mat Min Machines Disabled 1 | . 1 . Max in Single Turn 1 | . 1 . Machines Sabotaged . | . . . Garrisons Compromised . | . . . Overloaded Fab Kills . | . . . Fab Network Shutdowns . | . . . Hacking | -11 -10 -10 --------- Run | Scr Mat Min Machines Accessed 8 | . 7 1 Terminals 7 | . 7 . Fabricators . | . . . Repair Stations . | . . . Recycling Units . | . . . Scanalyzers . | . . . Garrison Access . | . . . Total Hacks 28 | . 27 1 Successful 12 | . 11 1 Failed 16 | . 16 . Catastrophic 2 | . 2 . Database Lockouts . | . . . Manual 12 | . 12 . Terminals 27 | . 27 . Fabricators . | . . . Repair Stations . | . . . Recycling Units . | . . . Scanalyzers . | . . . Garrison Access . | . . . Terminal Hacks 10 | . 9 1 Part Schematic 1 | . 1 . Prototype ID Bank 2 | . 2 . Open Door 1 | . . 1 Alert Level 1 | . 1 . Unreport Threat 1 | . 1 . Locate Traps 3 | . 3 . Zone Layout 1 | . 1 . Fabricator Hacks . | . . . Repair Station Hacks . | . . . Recycling Unit Hacks . | . . . Scanalyzer . | . . . Garrison Access Hacks . | . . . Unauthorized Hacks 2 | . 2 . Terminals 2 | . 2 . Track 1 | . 1 . Botnet 1 | . 1 . Fabricators . | . . . Repair Stations . | . . . Recycling Units . | . . . Scanalyzers . | . . . Garrison Access . | . . . Data Cores Recovered . | . . . Used . | . . . Hacking Detections 7 | . 7 . Full Trace Events 1 | . 1 . Feedback Events . | . . . Feedback Blocked . | . . . Robot Schematics Acquired . | . . . Robots Built . | . . . Matter . | . . . Time . | . . . Total Robot Build Rating . | . . . Part Schematics Acquired 1 | . 1 . Parts Built . | . . . Matter . | . . . Time . | . . . Total Part Build Rating . | . . . Parts Repaired . | . . . Time . | . . . Parts Recycled . | . . . Recycled Matter . | . . . Retrieved Matter . | . . . Retrieved Components . | . . . Parts Scanalyzed . | . . . Part Schematics Acquired . | . . . Parts Damaged . | . . . Bothacking | -11 -10 -10 ------------ Run | Scr Mat Min Used RIF Installer . | . . . Robots Hacked . | . . . Non-combat . | . . . Combat . | . . . Robot Hacks Applied . | . . . Relay Couplers Released . | . . . Robots Rewired . | . . . Allies Hacked . | . . . Hacks Repelled . | . . . Allies | -11 -10 -10 -------- Run | Scr Mat Min Total Allies 3 | . . 3 Largest Group 3 | . . 3 Highest-Rated Group 40 | . . 40 Highest-Rated Ally 16 | . . 16 Total Orders . | . . . Ally Attacks 21 | . . 21 Total Damage 286 | . . 286 Kills 4 | . . 4 Allies Corrupted . | . . . Allies Melted . | . . . Intel | -11 -10 -10 ------- Run | Scr Mat Min Robot Analysis Total . | . . . Derelict Logs Recovered . | . . . Drone Launches . | . . . Drone Recoveries . | . . . Exploration | -11 -10 -10 ------------- Run | Scr Mat Min Turns Passed 1807 | 45 1078 684 Spaces Moved 1032 | 30 664 338 Core . | . . . Treads 260 | . 10 250 Legs 5 | 5 . . Wheels 767 | 25 654 88 Hover . | . . . Flight . | . . . Fastest Speed 100 | 100 100 140 Average Speed 142 | 103 130 169 Slowest Speed 180 | 120 160 180 Overloaded Moves . | . . . Propulsion Burnouts . | . . . Robots Hopped . | . . . Cave-ins Triggered . | . . . Exploration Rate (%) 56 | 3 96 70 Regions Visited 2 Branch Regions 1 Pre-discovered Areas . | . . . Known Exits Taken . | . . . Unknown Exits Taken 2 | 1 1 . Scrap Searched 1 | . . 1 Spaces Dug 3 | . 3 . Terrain Destroyed 3 | . 3 . Melee 3 | . 3 . Projectile . | . . . AOE . | . . . Actions | -11 -10 -10 --------- Run | Scr Mat Min Total 1227 | 38 794 395 Wait 63 | . 46 17 Move 1030 | 29 663 338 Hop . | . . . Pick Up 21 | 1 20 . Fast Attach 3 | 2 1 . Attach 8 | 1 1 6 Detach 1 | . 1 . Swap 12 | . 8 4 Drop 12 | 2 9 1 Fire 67 | 3 38 26 Melee 8 | . 7 1 Ram . | . . . Kick . | . . . Crush 2 | . . 2 Escape Stasis . | . . . Rewire . | . . . Trap . | . . . Miscellaneous . | . . . Route ------- -11/Scrapyard -10/Materials (discovered 3 exits: [*Mat x2] / *Min) -10/Mines (discovered 1 exit: [*Mat]) History --------- Turn | Location | Event 1 | -11/Scrapyard | Discovered new exit (range 2) 46 | -11/Scrapyard | Entered Materials 199 | -10/Materials | Discovered new exit (range 15) 310 | -10/Materials | Build established: Mutant 398 | -10/Materials | Discovered new exit (range 12) 636 | -10/Materials | Build established: Hauler-Mutant 1059 | -10/Materials | Discovered new exit (range 8) 1124 | -10/Materials | Entered Mines 1301 | -10/Mines | Discovered new exit (range 8) 1315 | -10/Mines | Assisted by bots powering up and referring to "LRC-V3" 1517 | -10/Mines | Deemed a non-threat by the Exiles lab entrance 1563 | -10/Mines | Met a Derelict shopkeep closing up shop 1722 | -10/Mines | Assembled infested the area 1780 | -10/Mines | Core integrity fell below 50% 1793 | -10/Mines | Core integrity fell below 20% 1808 | -10/Mines | Destroyed by D-53 Grenadier with Mini Grenade Launcher Last Messages --------------- 01786_ Lgt. Assault Rifle destroyed. 01787_ D-53 Grenadier knocked back. 01787_ D-53 Grenadier destroyed. 01790_ D-53 Grenadier suffers critical hit. 01790_ Destroyed Cmb. Airjet. 01790_ D-53 Grenadier knocked back. 01791_ The unstable cave ceiling collapses. 01793_ D-53 Grenadier knocked back. 01794_ The unstable cave ceiling collapses. 01799_ U-05 Engineer builds a Wall. 01801_ The unstable cave ceiling collapses. 01802_ Ion Engine destroyed. 01802_ Lgt. Treads destroyed. 01803_ The unstable cave ceiling collapses. 01803_ U-05 Engineer builds a Wall. 01804_ T-07 Excavator destroyed. 01805_ D-53 Grenadier knocked back. 01806_ Imp. Light Cannon destroyed. 01807_ The unstable cave ceiling collapses. 01808_ Lgt. Treads destroyed. Map ----- +----------------------------------------------------+ | ?????????????????????????????????????????????? | | ?????????????????????????????????????????????? | | ?????????????????????????????????????????????? | | ???????????????###???????????????????????????? | | ??????????????## ##????###???????????????????? | | ############### #????# ##??????????????????? | | ##???# #??????????????????? | | ## ##?## #??????????????????? | | ## ############ ### #??????????????????? | | #?????????## #??????????????????? | | #?????????# ##??????????????????? | | #####????????## ####???????????????????? | | #????????????# ##??????????????????????? | | #????????????# ##???????????????????????? | | ?????????????## #????????????????????????? | | ??????????????## ##?###???????????????????? | | ???????????????## ## ##??????????????????? | | ###### #????# #????###???????????? | | *%[ ????## #??## ##??????????? | | ### ##???????????# ##?# #??????????? | | #????????????????# u#### ????????????? | | #????????????????# ### # ?????????????? | | ?????????????????# ## #??????????????? | | ????????????????## # # #??????????????? | | ???????????????## #??????????????? | | ???????????????# d @ #??????????????? | | ???????????????# #??????????????? | | ???????????????# " #??????????????? | | ???????????????# "" ##??????????????? | | ???????????????# ! ##???????????????? | | ???????????????## #####????????????????? | | ????????????????## ##??????????????????? | | ?????????????????## #####??????????????? | | ??????????????????## ##?????????????? | | ???????????????????## ######????????? | | ????????????????????## % #????????? | | ?????????????????????## ! #????????? | | ??????????????????????## #####%*#????????? | | ???????????????????????### ##????=% ??????? | | ?????????????????????????####????? #?????? | | ??????????????????????????????????#### #?????? | | ?????????????????????????????????????? #?????? | | ???????????????????????????????????????#?????? | | ?????????#####???????????????????????????????? | | ????????## ##??????????????????????????????? | | ???????## #??????????????????????????????? | | ??????## #??????????????????????????????? | | ####### ##?????????????????????????????? | | #?????????????????????????????? | | ##### #????????????????????????????? | +----------------------------------------------------+ Best States ------------- Heat Dissipation 25 Energy Generation 10 Energy Capacity 250 Matter Stores 300 Matter Capacity 300 Sight Range 16 Terrain Scan Range 16 Terrain Scan Density 10 Evasion (%) 40 Recoil Reduction 2 Item Schematics ----------------- Hcp. Storage Unit | -10/Materials | Hacked Robot Schematics ------------------ None Fabricated ------------ Nothing Alien Tech Used ----------------- None Achievements -------------- None Challenges ------------ None Game ------ Seed VisualReinforcedMatter Manual? 0 Play Time 00:23:08 Cumulative 874.0 hours Start 2020.07.30 @ 06:51:48 End 2020.07.30 @ 07:10:09 Sessions 1 Manual Loads 0 Difficulty Rogue Special Mode None Game No. 254 Rogue 254 Adventurer 0 Explorer 0 Win Type - Total 31 Types 21/2/5/3/0/0/0 Lore% 74 Gallery% 85 Achievement% 70 Wizard Run 0 Options --------- ASCII 0 Keyboard 1 Movement Numpad Keybinds 0 Fullscreen 1 Font 24/Smallcaps Map View 76x50 Tactical HUD 1 Map Filters NONE Filters NONE Steam 1 RUN: aea08d8e-5cac-4f0a-a1af-9fbdffd2295b